lending/lending_fUSD_20251015
["ID","MTS","AMOUNT","RATE_DAILY","PERIOD"]
[391306971,1760494369909,-451.37,0.00012808,2]
[391306972,1760494370826,278.193,0.00027,120]
[391306973,1760494377205,-2000.0,0.00012808,2]
[391306974,1760494382407,-222.67861483,0.00012808,2]
[391306975,1760494401448,-163.02262631,0.00012808,2]
[391306976,1760494404426,-172.80332904,0.00012808,2]
[391306977,1760494408508,-543.84873733,0.00012808,2]
[391306978,1760494409542,-1000.0,0.00012808,2]
[391306979,1760494412738,-208.01764293,0.00012808,2]
[391306980,1760494414336,-164.35433313,0.00012808,2]
[391306981,1760494419823,-302.0,0.00012808,2]
[391306982,1760494421350,-385.64566687,0.00012808,2]
[391306983,1760494425098,-154.35433313,0.00012808,2]
[391306984,1760494426541,-260.14817896,0.00012808,2]
[391306985,1760494429266,-613.77902078,0.00012808,2]
[391306986,1760494431826,-241.64566687,0.00012808,2]
[391306987,1760494434746,-349.0251416,0.00012808,2]
[391306988,1760494437332,-251.99,0.00012808,2]
[391306989,1760494438731,-449.86340805,0.00012808,2]
[391306990,1760494440876,-288.36659195,0.00012808,2]
[391306991,1760494445642,-300.04823856,0.00012808,2]
[391306992,1760494448675,-364.77045388,0.00012808,2]
[391306993,1760494450338,-335.28130756,0.00012808,2]
[391306994,1760494452230,-953.93884927,0.00012808,2]
[391306995,1760494456012,-375.51287448,0.00012808,2]
[391306996,1760494457549,-420.47616769,0.00012808,2]
[391307000,1760494564191,200.0,0.00030409,120]
[391307001,1760494578734,160.84,0.00010771,2]
[391307002,1760494618406,166.01651861,0.00012707,2]
[391307003,1760494767445,218.39811008,0.00030372,120]
[391307004,1760494789608,501.87968169,0.00030372,120]
[391307005,1760494862105,200.0,0.00030372,120]
[391307006,1760494936892,167.51346475,0.00012707,2]
[391307007,1760495030265,500.0,0.00027397,120]
[391307010,1760495110017,205.0,0.00030375,120]
[391307011,1760495112574,475.89,6.52e-05,2]
[391307012,1760495112809,475.89,6.863e-05,2]
[391307013,1760495113031,475.89,7.207e-05,2]
[391307014,1760495113239,475.89,7.55e-05,2]
[391307015,1760495113443,475.89,7.893e-05,2]
[391307016,1760495113677,475.89,8.236e-05,2]
[391307017,1760495113904,475.89,8.579e-05,2]
[391307018,1760495114138,475.89,8.923e-05,2]
[391307019,1760495114359,475.89,9.266e-05,2]
[391307020,1760495115788,475.89,9.609e-05,2]
[391307021,1760495115845,475.89,9.952e-05,2]
[391307022,1760495115891,475.89,0.00010295,2]
[391307023,1760495115954,475.89,0.00010638,2]
[391307024,1760495116016,475.89,0.00010982,2]
[391307025,1760495116078,475.89,0.00011325,2]
[391307026,1760495116126,475.89,0.00011668,2]
[391307027,1760495116186,475.89,0.00012011,2]
[391307028,1760495116263,475.89,0.00012354,2]
[391307029,1760495116452,475.89,0.00012698,2]
[391307034,1760495162776,200.0,0.00030375,120]
[391307036,1760495231957,164.07108501,0.00030379,120]
[391307040,1760495257862,159.49234565,0.00012706,2]
[391307042,1760495297375,282.7,0.00027397,120]
[391307043,1760495312478,1460.11851275,0.00030379,120]
[391307044,1760495313506,246.27046686,0.00030379,60]
[391307047,1760495318312,179.73906212,0.00030379,120]
[391307048,1760495319967,154.84320974,0.00030379,120]
[391307110,1760495432326,-2000.0,0.00012798,2]
[391307111,1760495432335,-2000.0,0.00012799,2]
[391307112,1760495432345,-1200.0,0.00012806,2]
[391307113,1760495432354,-1200.0,0.00012806,2]
[391307114,1760495432364,-82.13838932,0.00012807,2]
[391307115,1760495432380,-217.86161068,0.00012807,2]
[391307116,1760495432389,-300.0,0.00012807,2]
[391307117,1760495432398,-300.0,0.00012807,2]
[391307118,1760495432407,-2900.0,0.00012808,2]
[391307119,1760495432416,-900.0,0.00012808,2]
[391307120,1760495432426,-1474.52015502,0.0001289,2]
[391307121,1760495432435,-475.89,0.00013041,2]
[391307122,1760495432444,-1500.0,0.00013097,2]
[391307123,1760495432453,-150.0,0.00013188,2]
[391307124,1760495432463,-200.0,0.00013189,2]
[391307125,1760495432472,-7702.47,0.00013189,2]
[391307126,1760495432480,-19999.99,0.00013189,2]
[391307128,1760495432489,-6917.74,0.00013189,2]
[391307130,1760495432498,-250.0,0.00013234,7]
[391307131,1760495432508,-936.97,0.00013255,2]
[391307134,1760495432518,-14520.18,0.0001328,2]
[391307136,1760495432527,-1600.0,0.00013367,2]
[391307138,1760495432536,-500.0,0.00013415,2]
[391307140,1760495432545,-150.73,0.00013425,2]
[391307142,1760495432554,-166.76,0.00013536,2]
[391307144,1760495432562,-254.86,0.000138,2]
[391307146,1760495432572,-159.49234564,0.00013948,2]
[391307148,1760495432581,-1680.0,0.00014047,2]
[391307150,1760495432590,-420.0,0.00014048,2]
[391307152,1760495432599,-420.0,0.00014048,2]
[391307153,1760495432607,-2000.0,0.00014077,2]
[391307154,1760495432617,-2000.0,0.00014077,2]
[391307155,1760495432626,-253.38160953,0.00014078,2]
[391307156,1760495432635,-2000.0,0.00014078,2]
[391307158,1760495432644,-195.0,0.00014078,2]
[391307160,1760495432653,-1680.0,0.00014087,2]
[391307162,1760495432662,-8794.22141644,0.00014093,2]
[391307164,1760495432671,-151.0,0.00014161,2]
[391307165,1760495432680,-151.0,0.00014161,2]
[391307168,1760495432689,-151.0,0.00014161,2]
[391307169,1760495432698,-154.10692146,0.00014161,2]
[391307172,1760495432707,-200.0,0.00014161,2]
[391307174,1760495432716,-151.0,0.00014161,2]
[391307175,1760495432728,-204.28528275,0.00014161,2]
[391307176,1760495432738,-278.596,0.00014163,2]
[391307177,1760495432747,-334.9977,0.00014172,2]
[391307178,1760495432756,-2900.0,0.00014178,2]
[391307179,1760495432765,-900.0,0.00014178,2]
[391307180,1760495432774,-184.67,0.00014178,2]
[391307181,1760495432783,-8794.22141643,0.0001418,2]
[391307182,1760495432793,-500.0,0.00014192,2]
[391307183,1760495432802,-177.22521348,0.00014192,2]
[391307184,1760495432813,-500.0,0.00014192,2]
[391307185,1760495432822,-500.0,0.00014192,2]
[391307186,1760495432832,-500.0,0.00014192,2]
[391307187,1760495432841,-500.0,0.00014192,2]
[391307188,1760495432850,-500.0,0.00014192,2]
[391307189,1760495432860,-500.0,0.00014192,2]
[391307190,1760495432869,-500.0,0.00014192,2]
[391307191,1760495432878,-500.0,0.00014192,2]
[391307192,1760495432887,-649.20527064,0.00014192,2]
[391307193,1760495432897,-500.0,0.00014192,2]
[391307194,1760495432906,-500.0,0.00014192,2]
[391307195,1760495432915,-322.6107,0.00014193,2]
[391307196,1760495432924,-721.12765535,0.00014193,2]
[391307197,1760495432933,-2000.0,0.00014193,2]
[391307198,1760495432942,-627.60702111,0.00014193,2]
[391307199,1760495432954,-1372.39297889,0.00014193,2]
[391307200,1760495432964,-2000.0,0.00014193,2]
[391307201,1760495432973,-2000.0,0.00014193,2]
[391307202,1760495432983,-2000.0,0.00014193,2]
[391307203,1760495432992,-496.86272305,0.00014193,2]
[391307204,1760495433001,-616.55263249,0.00014193,2]
[391307205,1760495433011,-2000.0,0.00014193,2]
[391307206,1760495433020,-2000.0,0.00014193,2]
[391307207,1760495433029,-2000.0,0.00014193,2]
[391307208,1760495433038,-2000.0,0.00014193,2]
[391307209,1760495433046,-2000.0,0.00014193,2]
[391307210,1760495433055,-2000.0,0.00014193,2]
[391307211,1760495433064,-2000.0,0.00014193,2]
[391307212,1760495433073,-2000.0,0.00014193,2]
[391307213,1760495433082,-2000.0,0.00014193,2]
[391307214,1760495433092,-2000.0,0.00014193,2]
[391307215,1760495433101,-2000.0,0.00014193,2]
[391307216,1760495433112,-1000.0,0.00014193,2]
[391307217,1760495433122,-603.89463775,0.00014193,2]
[391307218,1760495433133,-1396.10536225,0.00014193,2]
[391307219,1760495433143,-2000.0,0.00014193,2]
[391307220,1760495433152,-2000.0,0.00014193,2]
[391307221,1760495433161,-1000.0,0.00014193,2]
[391307222,1760495433171,-2000.0,0.00014193,2]
[391307223,1760495433180,-2000.0,0.00014193,2]
[391307224,1760495433189,-2000.0,0.00014193,2]
[391307225,1760495433199,-418.07518192,0.00014193,2]
[391307226,1760495433208,-2000.0,0.00014193,2]
[391307227,1760495433217,-1393.36001118,0.00014193,2]
[391307228,1760495433227,-2000.0,0.00014193,2]
[391307229,1760495433236,-151.0,0.00014193,2]
[391307230,1760495433245,-2000.0,0.00014193,2]
[391307231,1760495433254,-2000.0,0.00014193,2]
[391307232,1760495433264,-2000.0,0.00014193,2]
[391307233,1760495433273,-2000.0,0.00014193,2]
[391307234,1760495433282,-2039.39304221,0.00014193,2]
[391307235,1760495433291,-900.27197426,0.00014193,2]
[391307236,1760495433300,-250.0,0.00014193,2]
[391307237,1760495433310,-250.0,0.00014193,2]
[391307238,1760495433319,-555.23406344,0.00014193,2]
[391307239,1760495433329,-250.0,0.00014193,2]
[391307240,1760495433338,-250.0,0.00014193,2]
[391307241,1760495433347,-250.0,0.00014193,2]
[391307242,1760495433356,-250.0,0.00014193,2]
[391307243,1760495433367,-250.0,0.00014193,2]
[391307244,1760495433377,-506.80813463,0.00014193,2]
[391307245,1760495433386,-250.0,0.00014193,2]
[391307246,1760495433395,-250.0,0.00014193,2]
[391307247,1760495433405,-250.0,0.00014193,2]
[391307248,1760495433414,-259.34246191,0.00014193,2]
[391307249,1760495433423,-500.0,0.00014193,2]
[391307250,1760495433432,-500.0,0.00014193,2]
[391307251,1760495433441,-500.0,0.00014193,2]
[391307252,1760495433450,-277.35679052,0.00014193,2]
[391307253,1760495433460,-220.38940245,0.00014193,2]
[391307254,1760495433470,-9552.16786547,0.00014193,2]
[391307255,1760495433479,-510.61355379,0.00014193,2]
[391307256,1760495433489,-1104.0,0.00014214,2]
[391307257,1760495433498,-1092.92,0.00014244,2]
[391307258,1760495433507,-336.14,0.00014244,2]
[391307259,1760495433516,-413.45,0.00014244,2]
[391307260,1760495433524,-7480.56412542,0.00014248,2]
[391307261,1760495433540,-2425.03395108,0.00014248,2]
[391307262,1760495433549,-151.0,0.00014263,2]
[391307263,1760495433559,-151.0,0.00014263,2]
[391307264,1760495433568,-151.0,0.00014263,2]
[391307265,1760495433578,-151.0,0.00014263,2]
[391307266,1760495433588,-1437.76604892,0.00014263,2]
[391307306,1760495439096,-198.04,0.00014238,2]
[391307308,1760495439105,-1312.77395108,0.00014263,2]
[391307310,1760495439117,-1755.82603528,0.00014268,2]
[391307312,1760495439128,-4271.696,0.00014268,2]
[391307314,1760495439140,-2766.69938115,0.00014268,2]
[391307316,1760495439149,-166.76,0.00014281,2]
[391307318,1760495439158,-500.0,0.00014282,2]
[391307320,1760495439168,-255.0,0.00014295,2]
[391307322,1760495439178,-1983.04061885,0.00014303,2]
[391307324,1760495439190,-3934.82653457,0.00014303,2]
[391307346,1760495440208,-776.42636932,0.00014303,2]
[391307347,1760495440220,-3577.81168259,0.00014303,2]
[391307348,1760495440230,-2000.0,0.00014336,2]
[391307349,1760495440240,-8794.22141643,0.00014355,2]
[391307350,1760495440249,-10652.17309792,0.00014358,2]
[391307351,1760495440259,-357.92,0.000144,2]
[391307352,1760495440268,-198.04,0.00014403,2]
[391307353,1760495440278,-7653.11575295,0.00014413,2]
[391307354,1760495440290,-3393.1877496,0.00014413,2]
[391307355,1760495440299,-8794.22141643,0.00014443,2]
[391307356,1760495440308,-153.50434865,0.00014465,2]
[391307357,1760495440316,-3321.75564824,0.00014468,2]
[391307358,1760495440332,-8133.2610839,0.00014468,2]
[391307359,1760495440341,-301.96,0.000145,2]
[391307360,1760495440350,-66.10575723,0.000145,2]
[391307361,1760495440361,-84.53424277,0.000145,2]
[391307362,1760495440371,-437.0,0.00014507,2]
[391307363,1760495440381,-877.40789387,0.00014523,2]
[391307364,1760495440390,-7548.27665809,0.00014523,2]
[391307365,1760495440402,-4330.57569314,0.00014523,2]
[391307366,1760495440411,-4613.20817148,0.0001453,2]
[391307367,1760495440422,-4181.01324495,0.0001453,2]
[391307368,1760495440431,-2750.54,0.00014537,2]
[391307369,1760495440440,-1738.54428327,0.00014547,2]
[391307370,1760495440449,-198.04,0.00014568,2]
[391307371,1760495440458,-209.4111333,0.00014578,2]
[391307373,1760495440776,-8943.84023489,0.00014578,2]
[391307375,1760495440788,-272.53608098,0.00014578,2]
[391307376,1760495440799,-2892.58243906,0.00014578,2]
[391307377,1760495440808,-1437.11698864,0.00014584,2]
[391307378,1760495440828,-301.42729462,0.00014584,2]
[391307379,1760495440837,-4820.6994705,0.00014618,2]
[391307380,1760495440848,-1902.07,0.00014618,2]
[391307381,1760495440864,-476.1899999,0.00014618,2]
[391307382,1760495440875,-1595.26194603,0.00014618,2]
[391307383,1760495440883,-1265.69043675,0.00014621,2]
[391307384,1760495440902,-472.85384651,0.00014621,2]
[391307385,1760495440912,-332.55933702,0.00014633,2]
[391307386,1760495440923,-285.36048212,0.00014633,2]
[391307387,1760495440935,-517.85126223,0.00014633,2]
[391307388,1760495440946,-3827.2391348,0.00014633,2]
[391307389,1760495440956,-378.66,0.00014633,2]
[391307390,1760495441231,-1.6e-07,0.00014633,2]
[391307391,1760495441247,-3502.39183922,0.00014633,2]
[391307395,1760495443361,-3930.08751854,0.00014633,2]
[391307396,1760495443371,-1738.54428326,0.00014658,2]
[391307397,1760495443380,-1593.77411837,0.0001468,2]
[391307398,1760495443390,-1105.4443756,0.00014685,2]
[391307399,1760495443399,-9399.3670551,0.00014687,2]
[391307400,1760495443409,-13246.79310833,0.00014688,2]
[391307401,1760495443418,-497.75292515,0.00014695,2]
[391307402,1760495443429,-539.98388592,0.00014695,2]
[391307403,1760495443445,-700.80747219,0.00014695,2]
[391307404,1760495443454,-198.04,0.00014701,2]
[391307405,1760495443463,-149.94238447,0.00014708,2]
[391307406,1760495443491,-8794.22141643,0.00014705,2]
[391307407,1760495443500,-1275.05761553,0.00014708,2]
[391307408,1760495443509,-1425.0,0.0001471,2]
[391307409,1760495443518,-1000.0,0.00014711,2]
[391307410,1760495443527,-150.0,0.00014717,2]
[391307411,1760495443536,-1425.0,0.00014723,2]
[391307412,1760495443545,-1425.0,0.00014725,2]
[391307413,1760495443554,-1000.0,0.0001473,2]
[391307414,1760495443563,-150.0,0.0001473,2]
[391307415,1760495443573,-1425.0,0.0001473,2]
[391307416,1760495443582,-1738.54428326,0.00014732,2]
[391307417,1760495443591,-1000.0,0.00014733,2]
[391307418,1760495443600,-150.0,0.00014736,2]
[391307419,1760495443610,-1425.0,0.00014737,2]
[391307420,1760495443623,-1105.4443756,0.0001474,2]
[391307421,1760495443632,-150.0,0.00014743,2]
[391307422,1760495443641,-6124.77783052,0.00014743,2]
[391307423,1760495443658,-470.31048926,0.00014743,2]
[391307424,1760495443670,-303.11381324,0.00014743,2]
[391307428,1760495446596,-5115.98610162,0.00014743,2]
[391307430,1760495462003,200.0,0.00030379,120]
[391307433,1760495563129,500.0,0.00012698,2]
[391307436,1760495682468,164.18,0.00027397,120]
[391307438,1760495761814,200.0,0.00030379,120]
[391307442,1760496061085,200.0,0.00030441,120]
[391307447,1760496361509,200.0,0.00030441,120]
[391307448,1760496379341,200.0,0.00027397,120]
[391307449,1760496411658,300.0,0.00027397,120]
[391307450,1760496430268,535.88927609,0.00027397,120]
[391307453,1760496435693,500.0,0.00027397,120]
[391307454,1760496439430,401.77051853,0.00027397,120]
[391307455,1760496446442,500.0,0.00027397,120]
[391307456,1760496447898,500.0,0.00027397,120]
[391307457,1760496451623,500.0,0.00027397,120]
[391307458,1760496454712,500.0,0.00027397,120]
[391307459,1760496457866,500.0,0.00027397,120]
[391307460,1760496461882,500.0,0.00027397,120]
[391307461,1760496464808,500.0,0.00027397,120]
[391307462,1760496468950,500.0,0.00027397,120]
[391307497,1760496569343,50000.0,0.00012,2]
[391307522,1760496631383,-287.44003504,0.00012808,2]
[391307523,1760496631489,-299.99,0.00012808,2]
[391307545,1760496637367,-212.56996496,0.00012808,2]
[391307546,1760496637377,-516.52131907,0.00012827,2]
[391307547,1760496637387,-208.00871617,0.00012927,2]
[391307548,1760496637419,-1103.25069592,0.00012927,2]
[391307549,1760496637474,-1037.35505948,0.00012927,2]
[391307550,1760496637486,-1084.5999956,0.00012927,2]
[391307551,1760496637498,-300.62553283,0.00012927,2]
[391307552,1760496637507,-998.43946771,0.00013082,2]
[391307553,1760496637519,-1169.0970635,0.00013082,2]
[391307554,1760496637530,-232.46346879,0.00013082,2]
[391307555,1760496637539,-1183.81469709,0.00013163,2]
[391307579,1760496639461,-16.18530291,0.00013163,2]
[391307581,1760496639470,-300.0,0.00013163,2]
[391307583,1760496639480,-35.86431459,0.00013164,2]
[391307588,1760496639514,-2715.13568541,0.00013164,2]
[391307590,1760496639525,-15115.99,0.00013375,2]
[391307592,1760496639535,-250.0,0.00013415,2]
[391307594,1760496639544,-166.66,0.00013699,2]
[391307596,1760496639554,-541.5,0.00013699,2]
[391307598,1760496639563,-168.0,0.00013725,2]
[391307600,1760496639573,-150.0,0.00013725,2]
[391307602,1760496639582,-206.18,0.00013726,2]
[391307604,1760496639593,-9999.99,0.00013726,2]
[391307605,1760496639605,-8990.38,0.00013726,2]
[391307607,1760496639616,-1058.06,0.00013726,2]
[391307609,1760496639626,-150.99,0.00013726,2]
[391307611,1760496639637,-150.99,0.00013726,2]
[391307613,1760496639646,-3793.3,0.00013726,2]
[391307615,1760496639656,-18455.51,0.00013726,2]
[391307617,1760496639665,-305.63,0.00013726,2]
[391307619,1760496639675,-831.78,0.0001375,2]
[391307621,1760496639684,-500.0,0.00013751,2]
[391307624,1760496639693,-327.91408783,0.00013751,2]
[391307626,1760496639702,-500.0,0.00013751,2]
[391307628,1760496639712,-517.47831016,0.00013751,2]
[391307629,1760496639721,-500.0,0.00013751,2]
[391307631,1760496639731,-289.19186362,0.00013751,2]
[391307633,1760496639740,-500.0,0.00013751,2]
[391307635,1760496639749,-550.15915832,0.00013751,2]
[391307637,1760496639759,-500.0,0.00013751,2]
[391307638,1760496639768,-500.0,0.00013751,2]
[391307641,1760496639778,-500.0,0.00013751,2]
[391307644,1760496639789,-500.0,0.00013751,2]
[391307646,1760496639798,-500.0,0.00013751,2]
[391307648,1760496639808,-500.0,0.00013751,2]
[391307650,1760496639817,-500.0,0.00013751,2]
[391307652,1760496639827,-500.0,0.00013751,2]
[391307654,1760496639836,-500.0,0.00013751,2]
[391307656,1760496639845,-231.22904468,0.00013752,2]
[391307658,1760496639855,-999.99,0.00013752,2]
[391307659,1760496639864,-98495.46,0.00013752,2]
[391307660,1760496639874,-1514.28,0.00013752,2]
[391307661,1760496639883,-7632.35,0.00013752,2]
[391307662,1760496639893,-151.0,0.00013757,2]
[391307663,1760496639902,-1200.0,0.00013757,2]
[391307664,1760496639911,-5985.75,0.00013758,2]
[391307665,1760496639921,-22883.22,0.0001376,2]
[391307666,1760496639930,-168.0,0.00013762,2]
[391307667,1760496639939,-6392.15,0.00013806,2]
[391307668,1760496639949,-186.9,0.00013845,2]
[391307670,1760496639958,-2374.63809804,0.00013856,2]
[391307672,1760496639968,-166.66,0.00013856,2]
[391307674,1760496639978,-1913801.2134377,0.00014,2]
[391307676,1760496639987,-1000.0,0.00014,2]
[391307678,1760496639996,-166.66,0.00014014,2]
[391307680,1760496640005,-300.34225299,0.00014089,2]
[391307682,1760496640015,-304.33839512,0.00014089,2]
[391307684,1760496640023,-168.0,0.00014089,2]
[391307686,1760496640033,-1131.1266,0.00014093,2]
[391307688,1760496640042,-168.0,0.00014106,2]
[391307690,1760496640051,-846.30032128,0.00014135,2]
[391307692,1760496640060,-322.6107,0.00014135,2]
[391307694,1760496640069,-5261.43781865,0.00014135,2]
[391307696,1760496640079,-277.35679052,0.00014135,2]
[391307698,1760496640088,-166.66,0.00014172,2]
[391307700,1760496640097,-800.0,0.00014178,2]
[391307702,1760496640107,-168.17,0.00014192,2]
[391307704,1760496640116,-168.0,0.00014207,2]
[391307706,1760496640125,-166.66,0.0001433,2]
[391307708,1760496640136,-877.40789388,0.0001437,2]
[391307710,1760496640145,-2111.3216329,0.00014404,2]
[391307712,1760496640155,-420.0,0.00014433,2]
[391307714,1760496640164,-1568.0,0.00014443,2]
[391307716,1760496640174,-2400.0,0.00014452,2]
[391307718,1760496640187,-2111.32163284,0.00014457,2]
[391307720,1760496640196,-831.78,0.00014469,2]
[391307722,1760496640205,-1680.0,0.00014479,2]
[391307724,1760496640215,-166.66,0.00014488,2]
[391307727,1760496640226,-2111.32163284,0.0001451,2]
[391307729,1760496640234,-2111.32163284,0.00014563,2]
[391307730,1760496640243,-1006.0,0.000146,2]
[391307732,1760496640254,-2111.32163284,0.00014616,2]
[391307734,1760496640263,-502.0,0.00014658,2]
[391307736,1760496640272,-751.64998069,0.00014664,2]
[391307738,1760496640282,-2111.32163284,0.00014668,2]
[391307740,1760496640291,-18752.5369991,0.00014672,2]
[391307742,1760496640300,-2654.1422123,0.00014672,2]
[391307744,1760496640310,-12278.934861,0.00014672,2]
[391307746,1760496640319,-4163.9897803,0.00014672,2]
[391307748,1760496640329,-1195.33058878,0.0001468,2]
[391307750,1760496640338,-831.78,0.0001469,2]
[391307752,1760496640347,-2000.00000099,0.000147,2]
[391307754,1760496640356,-1000.0,0.000147,2]
[391307756,1760496640365,-213.32518291,0.00014708,2]
[391307758,1760496640374,-1425.0,0.0001472,2]
[391307760,1760496640385,-200.0,0.00014721,2]
[391307762,1760496640394,-2111.32163284,0.00014721,2]
[391307764,1760496640403,-500.0,0.00014728,2]
[391307766,1760496640412,-1425.0,0.00014741,2]
[391307768,1760496640421,-5203.33577,0.00014743,2]
[391307770,1760496640430,-437.0,0.00014754,2]
[391307772,1760496640440,-437.0,0.00014769,2]
[391307774,1760496640448,-1425.0,0.0001477,2]
[391307776,1760496640458,-2111.32163284,0.00014774,2]
[391307778,1760496640467,-1425.0,0.00014781,2]
[391307780,1760496640476,-865.71592704,0.00014783,2]
[391307782,1760496640485,-1425.0,0.00014793,2]
[391307784,1760496640494,-865.71592699,0.00014794,2]
[391307786,1760496640504,-1105.4443756,0.00014795,2]
[391307788,1760496640513,-567.47153154,0.000148,2]
[391307790,1760496640522,-1000.0,0.000148,2]
[391307817,1760496640840,-865.71592699,0.00014805,2]
[391307821,1760496640878,-1425.0,0.00014811,2]
[391307823,1760496640888,-865.71592699,0.00014815,2]
[391307824,1760496640897,-728.40858864,0.00014821,2]
[391307826,1760496640906,-164.40012879,0.00014823,2]
[391307828,1760496640914,-382.47166932,0.00014824,2]
[391307829,1760496640923,-865.71592699,0.00014826,2]
[391307831,1760496640932,-151.0,0.00014827,2]
[391307833,1760496640942,-2111.32163284,0.00014827,2]
[391307835,1760496640951,-2869.984,0.0001483,2]
[391307837,1760496640959,-374.482,0.0001483,2]
[391307838,1760496640968,-218.52257659,0.0001483,2]
[391307840,1760496640978,-218.52257659,0.00014834,2]
[391307842,1760496640987,-865.71592699,0.00014837,2]
[391307844,1760496640995,-728.40858864,0.00014837,2]
[391307845,1760496641005,-255.0,0.00014837,2]
[391307847,1760496641014,-164.40012879,0.00014839,2]
[391307849,1760496641023,-437.0,0.00014839,2]
[391307851,1760496641032,-2560.22,0.00014841,2]
[391307853,1760496641041,-1425.0,0.00014846,2]
[391307855,1760496641052,-865.71592699,0.00014848,2]
[391307856,1760496641061,-437.0,0.00014854,2]
[391307858,1760496641071,-2500.0,0.00014856,3]
[391307860,1760496641080,-865.71592699,0.00014858,2]
[391307862,1760496641090,-200.0,0.0001486,2]
[391307864,1760496641099,-2500.0,0.00014865,3]
[391307866,1760496641109,-865.71592699,0.00014869,2]
[391307868,1760496641117,-831.78,0.0001487,2]
[391307869,1760496641126,-2500.0,0.00014874,3]
[391307871,1760496641136,-1105.4443756,0.00014877,2]
[391307873,1760496641146,-318.7583679,0.0001488,2]
[391307875,1760496641155,-964.5567828,0.0001488,2]
[391307877,1760496641164,-5000.0,0.0001488,2]
[391307878,1760496641174,-155.87665948,0.0001488,2]
[391307880,1760496641192,-2111.32163284,0.0001488,2]
[391307882,1760496641201,-247.2195439,0.0001488,2]
[391307884,1760496641211,-975.47424043,0.0001488,2]
[391307886,1760496641221,-865.71592699,0.0001488,2]
[391307888,1760496641231,-684.0,0.00014881,2]
[391307890,1760496641241,-437.0,0.00014882,2]
[391307891,1760496641251,-218.52257659,0.00014882,2]
[391307893,1760496641261,-2500.0,0.00014882,3]
[391307895,1760496641270,-5800.0,0.00014883,2]
[391307897,1760496641279,-5800.0,0.00014883,2]
[391307898,1760496641288,-318.75836789,0.00014885,2]
[391307900,1760496641297,-155.87665948,0.00014885,2]
[391307901,1760496641305,-164.40012879,0.00014889,2]
[391307902,1760496641315,-318.75836789,0.0001489,2]
[391307903,1760496641324,-155.87665948,0.0001489,2]
[391307904,1760496641332,-831.78,0.0001489,2]
[391307905,1760496641341,-2500.0,0.00014891,3]
[391307906,1760496641350,-2500.0,0.00014891,3]
[391307907,1760496641359,-5800.0,0.00014891,2]
[391307909,1760496641368,-5800.0,0.00014891,2]
[391307910,1760496641377,-318.75836789,0.00014895,2]
[391307912,1760496641386,-155.87665948,0.00014895,2]
[391307914,1760496641395,-728.40858864,0.00014896,2]
[391307916,1760496641404,-2500.0,0.000149,3]
[391307918,1760496641413,-5800.0,0.000149,2]
[391307920,1760496641422,-2500.0,0.000149,3]
[391307922,1760496641431,-680.31122285,0.000149,3]
[391307924,1760496641440,-5800.0,0.000149,2]
[391307926,1760496641449,-318.75836789,0.000149,2]
[391307928,1760496641459,-155.87665948,0.000149,2]
[391307930,1760496641468,-1425.0,0.00014906,2]
[391307932,1760496641476,-1425.0,0.00014913,2]
[391307934,1760496641485,-1425.0,0.00014924,2]
[391307936,1760496641494,-1105.4443756,0.00014932,2]
[391307938,1760496641503,-150.66545173,0.00014932,2]
[391307940,1760496641512,-150.74242684,0.00014932,2]
[391307942,1760496641521,-500.0,0.00014932,2]
[391307944,1760496641530,-150.0,0.00014932,2]
[391307946,1760496641540,-150.0,0.00014932,2]
[391307948,1760496641549,-150.76142564,0.00014932,2]
[391307950,1760496641558,-150.0,0.00014932,2]